bitfinex-derivatives/quotes_ETHF0:USTF0_20220103
["timestamp","ask_amount","ask_price","bid_price","bid_amount"]
[1641229481450,0.671657,3754.1,3753.7,2.31900067]
[1641229482354,1.33167673,3753.8,3753.7,2.31900067]
[1641229482553,0.671657,3754.1,3753.7,2.31900067]
[1641229482756,1.33149232,3754.0,3753.7,2.31900067]
[1641229483152,0.229991,3753.9,3753.7,2.31900067]
[1641229483353,0.671657,3754.1,3753.7,2.31900067]
[1641229483554,0.5435,3754.1,3753.7,2.31900067]
[1641229483854,2.00479,3754.2,3753.7,2.31900067]
[1641229484654,3.33623623,3754.2,3753.7,2.31900067]
[1641229484855,2.00479,3754.2,3753.7,2.31900067]
[1641229485260,2.00479,3754.2,3753.8,1.49802983]
[1641229486060,2.00479,3754.2,3753.8,2.02462983]
[1641229488062,2.00479,3754.2,3754.0,1.49802983]
[1641229489366,2.234781,3754.2,3754.0,1.49802983]
[1641229489567,2.00479,3754.2,3754.0,1.49802983]
[1641229490166,2.00479,3754.2,3754.1,1.49802983]
[1641229490768,2.00479,3754.6,3754.1,1.49802983]
[1641229490966,2.00479,3754.6,3754.2,0.71299372]
[1641229494673,2.00479,3754.6,3754.2,2.21102355]
[1641229500283,2.75969,3754.6,3754.2,2.21102355]
[1641229502481,2.75969,3754.6,3754.3,1.49802983]
[1641229502680,2.00479,3754.6,3754.4,0.045757]
[1641229503083,2.00479,3754.6,3754.5,1.49802983]
[1641229503981,2.00479,3754.6,3754.2,1.46099372]
[1641229504382,2.00479,3754.6,3754.5,1.5]
[1641229504583,2.00479,3755.1,3754.5,1.5]
[1641229504783,2.00479,3755.1,3754.6,0.045757]
[1641229504986,2.00479,3755.1,3754.7,1.15783271]
[1641229505983,2.00479,3755.4,3754.9,1.49544564]
[1641229507388,2.00479,3756.0,3754.9,2.99544564]
[1641229507687,2.00479,3756.0,3755.2,1.49544564]
[1641229507887,0.128157,3755.9,3755.2,2.42542058]
[1641229508088,2.00479,3756.0,3755.2,2.42542058]
[1641229508288,2.00479,3756.0,3755.2,3.92542058]
[1641229508493,2.19174042,3756.4,3755.2,3.92542058]
[1641229508687,33.0386,3756.5,3755.7,1.49544564]
[1641229508886,33.0386,3756.5,3755.7,2.30895996]
[1641229509087,5.429,3756.7,3755.7,2.35471696]
[1641229509286,2.00479,3756.5,3755.7,2.35471696]
[1641229509690,5.429,3756.7,3755.7,2.35471696]
[1641229509888,5.429,3756.7,3755.7,3.85471696]
[1641229510087,2.00479,3756.8,3755.9,1.49544564]
[1641229510289,2.00479,3756.8,3755.9,2.30644564]
[1641229510692,2.00479,3756.8,3755.9,3.80644564]
[1641229510889,2.19174042,3757.1,3756.7,1.5]
[1641229511091,2.92233149,3757.3,3756.8,1.545757]
[1641229511391,4.12478009,3757.9,3757.2,1.5]
[1641229511597,3.75465249,3758.3,3757.7,1.5]
[1641229511790,2.21972199,3758.0,3757.7,0.799]
[1641229511989,4.13011774,3758.6,3757.9,1.5]
[1641229512189,15.0,3759.6,3757.7,0.799]
[1641229512590,15.0,3759.6,3757.7,2.299]
[1641229512791,0.1501317,3759.5,3757.7,0.799]
[1641229512991,0.1501317,3759.5,3758.2,1.32927285]
[1641229513194,2.1549217,3759.5,3758.6,2.00479]
[1641229513392,2.00479,3759.5,3758.7,0.045757]
[1641229513995,2.00479,3759.5,3758.8,1.5]
[1641229514195,3.03490774,3759.6,3758.7,0.045757]
[1641229514597,3.03490774,3759.6,3759.1,1.5]
[1641229514799,3.03490774,3759.6,3758.7,0.045757]
[1641229515097,0.128157,3759.5,3759.2,1.48569272]
[1641229515297,0.128157,3759.5,3759.4,2.00479]
[1641229516097,0.128157,3759.5,3759.4,3.02773349]
[1641229516297,3.69240774,3759.6,3759.4,3.02773349]
[1641229518303,0.229991,3759.5,3759.4,3.02773349]
[1641229518701,0.229991,3759.5,3758.6,2.00479]
[1641229519103,3.128157,3759.4,3758.7,0.95199967]
[1641229519302,2.00479,3759.0,3758.7,0.95199967]
[1641229519504,0.229991,3758.9,3758.7,0.95199967]
[1641229519702,1.32979431,3758.8,3758.7,0.95199967]
[1641229519903,0.6709,3758.8,3758.7,0.95199967]
[1641229520407,0.900891,3758.8,3758.7,0.95199967]
[1641229520605,0.6709,3758.8,3758.7,0.95199967]
[1641229521209,0.128157,3759.4,3758.7,2.95678967]
[1641229521406,2.00479,3759.5,3758.7,2.95678967]
[1641229521805,2.132947,3759.5,3758.7,2.95678967]
[1641229522308,5.132947,3759.5,3758.7,2.95678967]
[1641229522507,3.0,3758.9,3758.7,0.95199967]
[1641229522706,0.229991,3758.8,3758.7,0.95199967]
[1641229523107,0.5616,3758.9,3758.4,3.02045079]
[1641229523309,2.00479,3758.9,3758.4,3.02045079]
[1641229523507,0.79805538,3759.2,3758.8,1.5]
[1641229523708,2.00479,3759.5,3758.8,1.5]
[1641229524206,2.132947,3759.5,3758.7,1.5]
[1641229524607,2.00479,3759.5,3758.7,1.5]
[1641229524807,2.00479,3759.5,3758.8,2.97469379]
[1641229525208,2.00479,3759.5,3758.9,2.00479]
[1641229525509,2.00479,3759.5,3758.9,2.71250934]
[1641229526108,0.128157,3759.4,3758.9,2.71250934]
[1641229527509,0.128157,3759.4,3758.9,2.75826634]
[1641229527710,2.00479,3759.5,3758.9,2.75826634]
[1641229528311,2.00479,3759.5,3758.9,2.71250934]
[1641229529012,2.76673709,3759.6,3758.9,2.71250934]
[1641229529213,2.76673709,3759.6,3759.3,2.00479]
[1641229529512,0.229991,3759.5,3759.3,2.00479]
[1641229529912,11.48,3759.7,3759.3,2.00479]
[1641229530112,0.79798157,3759.5,3759.3,2.00479]
[1641229530314,0.076528,3759.4,3759.3,2.00479]
[1641229530714,0.79785359,3760.1,3759.3,2.234781]
[1641229530915,0.79785359,3760.1,3759.3,2.912781]
[1641229531118,1.00186607,3760.2,3759.3,2.912781]
[1641229531315,1.32927992,3760.3,3759.7,2.00479]
[1641229532117,13.48479,3760.5,3759.7,2.00479]
[1641229532716,13.48479,3760.5,3759.7,2.75145439]
[1641229533118,1.41163498,3760.4,3759.7,2.75145439]
[1641229533419,13.48479,3760.5,3759.7,2.75145439]
[1641229533620,1.32922691,3760.4,3759.7,2.75145439]
[1641229534019,1.5,3760.3,3759.7,2.75145439]
[1641229534719,11.48,3760.4,3759.7,2.75145439]
[1641229535120,1.582401,3760.3,3759.7,2.75145439]
[1641229535319,3.0,3759.9,3759.7,2.75145439]
[1641229535521,0.076528,3759.8,3759.7,2.75145439]
[1641229535721,1.576528,3759.8,3759.7,2.75145439]
[1641229536222,1.576528,3759.8,3759.3,2.00479]
[1641229536420,0.076528,3759.8,3759.3,2.00479]
[1641229536822,1.576528,3759.8,3759.3,1e-08]
[1641229537121,1.576528,3759.8,3758.3,30.5006]
[1641229537322,2.338087,3765.1,3759.7,1.5]
[1641229537526,3.0,3764.0,3762.0,1.32792955]
[1641229537722,11.48,3763.9,3762.7,1.32766685]
[1641229537923,1.5,3763.7,3762.2,1.32783433]
[1641229538122,0.15001323,3763.8,3762.0,0.8082]
[1641229538323,1.32816059,3763.5,3762.0,0.8082]
[1641229538524,1.32842877,3762.7,3762.0,0.8082]
[1641229538726,11.48,3763.3,3762.0,0.8082]
[1641229538923,11.48,3762.7,3762.1,1.1177178]
[1641229539323,14.48,3762.7,3762.1,3.1225078]
[1641229539523,15.98,3762.7,3762.1,3.1225078]
[1641229539725,14.48,3762.7,3762.1,3.1225078]
[1641229539924,11.48,3762.7,3762.1,3.1225078]
[1641229540126,11.48,3762.5,3762.1,3.1225078]
[1641229541625,3.33312349,3763.0,3762.1,3.1225078]
[1641229541925,2.00479,3763.0,3762.1,3.9388078]
[1641229542526,1.10588213,3763.1,3762.1,3.9388078]
[1641229542725,12.58588213,3763.1,3762.1,3.9388078]
[1641229543225,11.48,3763.1,3762.5,2.00479]
[1641229543429,14.48,3762.6,3762.5,2.00479]
[1641229544027,14.48,3762.6,3761.1,1.5]
[1641229544028,15.98,3762.6,3759.5,2.97469379]
[1641229544228,16.7574,3762.6,3759.9,30.9437]
[1641229544430,17.3187,3762.6,3760.0,33.0869]
[1641229544729,16.7574,3762.6,3760.8,0.87140644]
[1641229544931,15.2574,3762.6,3760.8,0.87140644]
[1641229545129,15.2574,3762.6,3760.9,0.72580478]
[1641229545331,2.00479,3761.7,3760.9,0.72580478]
[1641229545530,2.00479,3761.7,3761.0,0.128157]
[1641229546829,13.48479,3761.7,3761.0,0.128157]
[1641229547029,2.00479,3762.1,3760.9,0.32966178]
[1641229547230,11.48,3762.0,3761.2,2.00479]
[1641229547836,7.73122396,3762.0,3761.2,2.00479]
[1641229548031,2.00479,3762.1,3761.2,2.00479]
[1641229548631,1.41821823,3761.8,3761.2,2.00479]
[1641229548832,2.11231823,3761.8,3761.2,2.00479]
[1641229549034,0.31282912,3761.8,3761.2,2.00479]
[1641229549435,0.44098612,3761.8,3761.2,2.00479]
[1641229549633,0.31282912,3761.8,3761.2,2.00479]
[1641229551436,0.128157,3761.7,3761.2,2.00479]
[1641229552337,2.00479,3762.1,3761.2,2.00479]
[1641229553039,2.21764146,3762.6,3761.2,2.00479]
[1641229553040,1.61015487,3762.5,3761.2,2.00479]
[1641229553539,11.48,3762.4,3761.9,2.00479]
[1641229553738,11.608157,3762.4,3761.9,2.00479]
[1641229554339,11.608157,3762.4,3762.0,1.26694107]
[1641229555039,11.608157,3762.4,3762.3,1.45017717]
[1641229556839,11.608157,3762.4,3761.2,3.71696783]
[1641229556840,11.48,3761.8,3761.2,3.71696783]
[1641229557041,11.48,3761.6,3760.3,4.45782928]
[1641229557241,1.5,3760.9,3760.4,4.45782928]
[1641229557442,0.128157,3760.8,3760.2,2.00479]
[1641229557644,5.02774,3760.8,3760.2,1.85359]
[1641229558442,0.773157,3760.8,3760.2,1.85359]
[1641229558849,0.773157,3760.8,3760.2,3.07579904]
[1641229559942,14.09421686,3760.8,3760.2,0.31908109]
[1641229560142,14.09421686,3760.8,3760.0,0.87288243]
[1641229560143,3.0,3760.3,3760.0,0.87288243]
[1641229560343,11.48,3760.2,3760.0,0.87288243]
[1641229560744,11.48,3760.2,3759.7,0.87647174]
[1641229560945,11.48,3760.2,3759.9,0.87331968]
[1641229561346,3.33421129,3760.0,3759.9,0.87331968]
[1641229561547,3.33421129,3760.0,3759.9,1.10331068]
[1641229561753,2.00479,3760.0,3759.1,2.00479]
[1641229561950,2.00479,3760.0,3759.9,0.86852466]
[1641229562149,2.00479,3760.0,3759.3,0.6264]
[1641229562349,2.00479,3760.3,3759.6,1.5]
[1641229562550,2.00479,3760.3,3759.3,0.6264]
[1641229563049,2.00479,3760.3,3759.4,1.03447219]
[1641229563451,2.00479,3760.3,3759.7,2.00479]
[1641229565050,0.128157,3760.4,3759.7,2.00479]
[1641229565652,14.81386144,3760.9,3759.7,2.00479]
[1641229566451,14.81386144,3760.9,3759.7,2.83679]
[1641229566452,3.33386144,3760.9,3759.7,2.83679]
[1641229566652,3.33386144,3760.9,3759.7,4.16550472]
[1641229566653,2.00479,3760.9,3759.7,4.16550472]
[1641229567253,2.00479,3760.9,3759.8,1.5]
[1641229567452,2.00479,3760.9,3760.3,2.00479]
[1641229569257,16.48479,3760.9,3760.3,2.00479]
[1641229569559,16.48479,3760.9,3760.4,1.0816409]
[1641229570957,12.98,3760.7,3760.4,1.0816409]
[1641229571158,12.0476,3760.7,3760.4,1.0816409]
[1641229571360,12.0476,3760.7,3759.8,0.81031512]
[1641229572662,0.5676,3760.7,3759.8,0.81031512]
[1641229572861,1.70643171,3760.8,3759.8,0.81031512]
[1641229573865,2.00479,3760.9,3759.8,2.31031512]
[1641229574066,2.00479,3760.9,3759.8,3.10531512]
[1641229574265,2.00479,3760.9,3759.8,1.60531512]
[1641229575067,13.48479,3760.9,3759.8,0.81031512]
[1641229575669,2.00479,3760.9,3759.8,0.81031512]
[1641229575868,3.25573604,3760.9,3759.8,0.81031512]
[1641229576069,14.73573604,3760.9,3759.8,0.81031512]
[1641229576971,3.25573604,3760.9,3759.8,0.81031512]
[1641229579878,14.73573604,3760.9,3759.8,0.81031512]
[1641229580278,12.93589575,3760.9,3759.8,0.81031512]
[1641229580678,3.0,3760.7,3759.8,0.81031512]
[1641229580880,11.48,3760.6,3759.8,0.81031512]
[1641229581578,0.79776246,3760.6,3760.2,2.00479]
[1641229582880,0.20494971,3760.9,3760.2,2.67189]
[1641229583481,0.33310671,3760.9,3760.2,2.67189]
[1641229583881,11.81310671,3760.9,3760.2,2.67189]
[1641229584082,11.68494971,3760.9,3760.2,2.67189]
[1641229584281,12.48263646,3760.9,3760.2,2.67189]
[1641229585182,1.00263646,3760.9,3760.2,2.67189]
[1641229585383,0.20494971,3760.9,3760.2,2.67189]
[1641229586286,0.128157,3760.8,3760.2,2.67189]
[1641229586484,0.20494971,3760.9,3760.2,2.67189]
[1641229589686,0.128157,3760.8,3760.2,2.67189]
[1641229590285,0.20494971,3760.9,3760.8,1.47444042]
[1641229590487,0.20494971,3760.9,3760.8,2.63347725]
[1641229591087,3.20494971,3760.9,3760.8,1.15903683]
[1641229591286,3.20494971,3760.9,3759.8,61.6256]
[1641229591287,0.79770534,3760.8,3760.6,1.47315444]
[1641229591487,0.79770534,3760.8,3760.2,1.05698735]
[1641229591687,0.128157,3760.7,3760.2,1.05698735]
[1641229592091,12.47334971,3760.9,3760.2,1.05698735]
[1641229592488,11.68494971,3760.9,3760.2,1.66628735]
[1641229592689,11.68494971,3760.9,3760.7,0.88450007]
[1641229593090,14.48,3760.8,3760.7,0.88450007]
[1641229593494,14.48,3760.8,3760.2,1.05698735]
[1641229593689,0.128157,3760.7,3760.2,1.05698735]
[1641229594488,11.48,3760.8,3760.2,1.05698735]
[1641229594690,3.0,3760.6,3760.2,1.05698735]
[1641229595191,11.48,3760.8,3760.2,1.05698735]
[1641229595589,14.48,3760.6,3760.2,1.05698735]
[1641229595790,0.128157,3760.5,3760.2,1.05698735]
[1641229596191,0.128157,3760.5,3760.1,2.00479]
[1641229596390,0.691457,3760.5,3759.7,2.00479]
[1641229596590,14.48,3760.0,3759.7,2.00479]
[1641229597190,14.48,3760.0,3759.7,3.27753715]
[1641229598392,0.40062212,3759.6,3758.9,6.28438776]
[1641229598593,3.0,3759.3,3758.9,6.28438776]
[1641229598893,11.608157,3759.5,3758.9,3.66872994]
[1641229599294,11.608157,3759.5,3758.9,0.75000255]
[1641229599493,2.00479,3759.3,3758.9,0.75000255]
[1641229600295,2.00479,3759.3,3759.0,1.00475608]
[1641229601296,16.48479,3759.3,3759.0,1.00475608]
[1641229601694,16.48479,3759.3,3759.2,1.47402271]
[1641229602995,16.48479,3759.3,3759.0,1.00475608]
[1641229603596,3.50479,3759.2,3758.5,0.75000255]
[1641229603797,14.48,3758.6,3758.5,0.75000255]
[1641229603996,14.608157,3758.6,3758.0,2.91872739]
[1641229604494,14.608157,3758.6,3758.2,0.91175954]
[1641229605299,1.32993048,3758.5,3758.2,0.91175954]
[1641229605498,14.608157,3758.6,3758.2,0.91175954]
[1641229605700,11.48,3758.3,3758.2,0.91175954]
[1641229606598,12.8101003,3758.3,3757.5,2.00479]
[1641229606798,14.48,3758.0,3757.6,1.21416645]
[1641229607200,15.98,3758.0,3757.6,1.21416645]
[1641229607498,15.98,3758.0,3757.0,5.53354059]
[1641229607499,1.33028078,3757.7,3757.0,5.53354059]
[1641229607699,3.0,3757.4,3757.0,5.53354059]
[1641229607901,15.0329,3757.4,3757.0,5.53354059]
[1641229608099,1.33048786,3757.1,3757.0,5.53354059]
[1641229608298,2.65638855,3757.5,3757.0,5.76353159]
[1641229608499,2.65638855,3757.5,3757.0,5.53354059]
[1641229609000,2.65638855,3757.5,3757.0,2.6148132]
[1641229609400,3.0,3757.4,3757.0,2.6148132]
[1641229609600,2.00479,3757.3,3757.0,2.6148132]
[1641229609801,13.48479,3757.3,3757.1,1.23934801]
[1641229610001,11.68342373,3757.3,3757.1,1.23934801]
[1641229610404,0.20342373,3757.3,3757.1,1.23934801]
[1641229611803,0.20342373,3757.3,3757.2,0.229991]
[1641229612003,0.20342373,3757.3,3757.1,1.23934801]
[1641229614105,0.20342373,3757.3,3757.1,1.46933901]
[1641229616007,2.74693684,3758.1,3757.1,1.46933901]
[1641229616008,2.74693684,3758.1,3757.2,1.5]
[1641229616210,2.74693684,3758.1,3757.6,1.5]
[1641229616408,2.74693684,3758.1,3757.2,0.6266]
[1641229616409,1.32977132,3758.9,3757.2,2.1266]
[1641229616610,32.5746,3759.4,3757.7,1.5]
[1641229616811,2.82137995,3760.1,3757.3,30.9564]
[1641229617010,1.32944957,3759.8,3757.7,2.82944957]
[1641229617408,2.43207995,3760.1,3758.6,1.5]
[1641229617608,2.00479,3759.7,3758.9,2.00479]
[1641229618017,2.00479,3759.7,3759.0,1.16855206]
[1641229618216,0.128157,3759.6,3759.0,1.16855206]
[1641229621420,11.48,3759.2,3759.0,5.206e-05]
[1641229621619,12.27810291,3759.0,3758.5,2.00479]
[1641229621818,1.5,3758.8,3758.5,2.00479]
[1641229622017,2.2237,3758.8,3758.5,2.00479]
[1641229622217,11.48,3758.7,3758.5,2.00479]
[1641229622418,11.48,3758.7,3757.3,65.30406252]
[1641229622617,11.48,3758.7,3757.3,63.8405]
[1641229622618,3.0,3758.3,3757.3,63.8405]
[1641229622820,14.48,3758.3,3757.4,1.13722961]
[1641229623019,3.0,3758.3,3757.4,1.13722961]
[1641229623222,6.051,3757.5,3757.4,1.13722961]
[1641229623421,8.3567,3757.5,3757.1,0.87813751]
[1641229623618,1.60411557,3757.5,3757.1,0.87813751]
[1641229623819,1.60411557,3757.5,3756.9,0.87813751]
[1641229624018,3.10411557,3757.5,3756.9,0.87813751]
[1641229624218,1.60411557,3757.5,3756.9,0.87813751]
[1641229624619,2.93453086,3757.5,3756.9,0.87813751]
[1641229624818,0.128157,3757.4,3757.0,0.98214706]
[1641229625420,1.60411557,3757.5,3757.0,0.98214706]
[1641229625619,2.00479,3757.6,3757.0,0.98214706]
[1641229625822,2.00479,3758.0,3757.0,0.98214706]
[1641229626021,3.33486553,3758.0,3757.0,0.98214706]
[1641229626220,1.33007553,3758.0,3757.0,1.68344706]
[1641229626422,1.3298845,3758.6,3757.5,1.5]
[1641229627825,1.3298845,3758.6,3757.6,3.16375811]
[1641229627826,2.00479,3758.4,3757.6,3.16375811]
[1641229629625,2.00479,3758.4,3757.7,1.5]
[1641229629825,2.00479,3758.8,3757.7,1.5]
[1641229630026,2.00479,3759.1,3758.3,1.5]
[1641229630327,3.0,3759.2,3758.3,2.2787]
[1641229630529,3.0,3759.2,3758.4,1.5]
[1641229630931,3.0,3759.2,3758.3,0.7787]
[1641229631327,0.128157,3759.1,3758.4,1.32592931]
[1641229631826,0.128157,3759.1,3758.8,2.00479]
[1641229634527,0.79812702,3758.9,3758.8,2.00479]
[1641229634729,0.79812702,3758.9,3758.5,2.00479]
[1641229635130,2.12791249,3758.9,3758.5,2.00479]
[1641229635330,0.79812702,3758.9,3758.5,2.00479]
[1641229635731,0.79812702,3758.9,3758.4,1.32592931]
[1641229638639,3.79812702,3758.9,3758.4,1.32592931]
[1641229638837,15.27812702,3758.9,3758.4,1.32592931]
[1641229639439,14.48,3758.9,3758.4,0.52771185]
[1641229639939,11.48,3758.4,3756.9,34.04265252]
[1641229640140,3.0,3757.8,3756.9,34.04265252]
[1641229640340,3.0,3757.8,3757.3,0.87813751]
[1641229641539,3.0,3757.8,3756.9,2.00479]
[1641229641739,2.00479,3757.8,3757.0,0.97365904]
[1641229642840,0.128157,3757.7,3757.0,0.97365904]
[1641229643943,2.00479,3757.8,3757.0,2.47365904]
[1641229644142,2.00479,3757.8,3757.0,1.69755904]
[1641229644742,2.00479,3757.8,3757.0,3.19755904]
[1641229644943,2.00479,3758.5,3757.5,1.5]
[1641229645544,2.00479,3758.5,3757.1,0.87813751]
[1641229645745,2.00479,3758.5,3757.3,5.429]
[1641229645942,2.00479,3758.5,3757.7,2.00479]
[1641229646143,2.00479,3758.5,3757.7,2.99297493]
[1641229646446,0.128157,3758.4,3757.7,2.99297493]
[1641229647046,2.00479,3758.5,3757.7,2.99297493]
[1641229648546,0.128157,3758.4,3757.7,2.99297493]
[1641229648951,2.00479,3758.5,3757.7,2.99297493]
[1641229649148,1.33003131,3758.2,3757.7,2.99297493]
[1641229649947,1.33018877,3757.8,3757.7,2.99297493]
[1641229650547,1.45834577,3757.8,3757.7,2.99297493]
[1641229651351,1.33018877,3757.8,3757.7,3.22296593]
[1641229651949,1.33018877,3757.8,3757.7,2.99297493]
[1641229652351,0.79840468,3757.5,3756.9,4.92351739]
[1641229652551,0.128157,3757.4,3756.9,4.92351739]
[1641229652950,3.0,3757.1,3756.9,4.92351739]
[1641229653352,3.0,3757.1,3757.0,1.2297527]
[1641229654355,17.3104206,3757.1,3756.5,2.00479]
[1641229654554,15.98,3757.1,3756.5,2.00479]
[1641229654754,14.48,3757.1,3756.5,2.00479]
[1641229655154,1.33049317,3756.9,3756.5,2.00479]
[1641229655354,13.56129317,3756.9,3756.5,2.00479]
[1641229655555,12.2308,3756.9,3756.5,2.00479]
[1641229655954,13.56129317,3756.9,3756.5,2.00479]
[1641229656355,2.08129317,3756.9,3756.5,2.00479]
[1641229656759,0.7508,3756.9,3756.5,2.00479]
[1641229656956,1.33051442,3756.8,3756.5,2.00479]
[1641229657159,1.33051442,3756.8,3756.6,0.229991]
[1641229657358,1.33051442,3756.8,3756.6,1.028091]
[1641229658158,1.33051442,3756.8,3756.6,0.7981]
[1641229658358,1.33051442,3756.8,3756.6,1.028091]
[1641229658558,1.33051442,3756.8,3756.7,1.02425054]
[1641229659158,1.53391918,3757.0,3756.7,1.02425054]
[1641229660858,1.53391918,3757.0,3756.8,0.229991]
[1641229661061,1.53391918,3757.0,3756.7,1.02425054]
[1641229661662,1.53391918,3757.0,3756.8,0.229991]
[1641229662063,1.53391918,3757.0,3756.7,1.02425054]
[1641229663364,1.53391918,3757.0,3756.8,0.229991]
[1641229663562,1.53391918,3757.0,3756.7,1.02425054]
[1641229664765,4.53391918,3757.0,3756.7,1.02425054]
[1641229664970,4.53391918,3757.0,3756.2,2.00479]
[1641229665366,1.53391918,3757.0,3756.2,2.00479]
[1641229665566,1.53391918,3757.0,3756.7,1.47651691]
[1641229667067,1.53391918,3757.0,3756.7,2.27504711]
[1641229667268,1.33065959,3756.8,3756.7,2.27504711]
[1641229667470,2.86446015,3757.0,3756.7,2.27504711]
[1641229667471,0.79853765,3756.9,3756.7,2.27504711]
[1641229667870,1.3305994,3756.8,3756.7,2.27504711]
[1641229668570,1.3305994,3756.8,3756.7,0.7985302]
[1641229669372,12.8105994,3756.8,3756.4,1.47651691]
[1641229669672,12.8105994,3756.8,3756.5,0.88738199]
[1641229669871,1.5,3756.7,3756.5,0.88738199]
[1641229670071,0.128157,3756.6,3756.5,0.88738199]
[1641229670371,0.128157,3756.6,3756.2,2.8324282]
[1641229673573,1.628157,3756.6,3756.2,0.8276382]
[1641229673773,0.128157,3756.6,3756.2,0.8276382]
[1641229673976,2.00479,3756.4,3756.2,0.8276382]
[1641229675078,13.48479,3756.4,3756.2,0.8276382]
[1641229675480,2.00479,3756.4,3756.2,0.8276382]
[1641229675680,2.83079241,3756.3,3756.2,0.8276382]
[1641229675880,1.33079241,3756.3,3756.2,0.6906382]
[1641229676081,1.33079241,3756.3,3756.2,0.5111382]
[1641229676285,5.83079241,3756.3,3755.8,2.00479]
[1641229676582,1.5,3755.9,3755.6,0.82576795]
[1641229676780,3.0,3755.7,3755.6,0.82576795]
[1641229677782,3.0,3755.7,3755.2,3.21426426]
[1641229677984,2.00479,3755.3,3755.2,3.21426426]
[1641229678182,2.55659,3755.3,3755.2,3.21426426]
[1641229678584,3.887781,3755.3,3755.2,3.21426426]
[1641229679083,2.55659,3755.3,3755.2,3.21426426]
[1641229679286,2.55659,3755.3,3755.2,0.75040903]
[1641229679487,3.88775619,3755.3,3755.2,0.75040903]
[1641229679689,3.88775619,3755.3,3755.0,1.04901188]
[1641229680088,14.48,3755.2,3755.0,1.04901188]
[1641229680288,1.33133633,3755.1,3755.0,1.04901188]
[1641229680587,0.128157,3755.0,3754.6,3.21426426]
[1641229680787,0.128157,3755.0,3754.6,0.75040903]
[1641229680987,0.128157,3755.0,3754.8,1.48150003]
[1641229681187,1.45938699,3755.0,3754.8,1.48150003]
[1641229681991,2.00479,3754.9,3754.8,1.48150003]
[1641229682491,2.00479,3754.9,3754.7,1.25721881]
[1641229682691,2.00479,3754.9,3754.8,0.229991]
[1641229683796,1.33105634,3755.5,3754.8,3.21149103]
[1641229683993,3.19125497,3755.9,3755.0,2.00479]
[1641229684193,0.128157,3755.8,3755.0,2.00479]
[1641229684796,3.19125497,3755.9,3755.0,2.00479]
[1641229685995,3.19125497,3755.9,3755.7,1.48150003]
[1641229686194,2.132947,3755.9,3755.7,1.48150003]
[1641229686395,1.33095182,3755.8,3755.7,2.5149099]
[1641229687400,1.57725771,3755.8,3755.7,1.03340987]
[1641229689096,1.33095182,3755.8,3755.7,1.03340987]
[1641229690299,1.59902197,3755.8,3755.7,1.03340987]
[1641229692999,1.59902197,3755.8,3755.7,1.77942811]
[1641229695404,1.59902197,3755.8,3755.7,0.74601824]
[1641229702307,0.26807015,3755.8,3755.7,0.97600924]
[1641229702607,0.26807015,3755.8,3755.7,0.74601824]
[1641229703510,0.26807015,3755.8,3755.7,0.97600924]
[1641229704308,2.00479,3755.9,3755.7,0.97600924]
[1641229704510,4.52203321,3756.3,3755.7,0.97600924]
[1641229705611,0.2696222,3756.2,3756.0,1.47707114]
[1641229706010,0.2696222,3756.2,3756.0,1.70706214]
[1641229706210,3.33556824,3756.3,3756.0,1.70706214]
[1641229706411,3.33556824,3756.3,3756.1,1.47707114]
[1641229706614,1.18646497,3756.5,3756.2,1.5]
[1641229706814,1.49879703,3756.8,3756.2,1.5]
[1641229707111,1.49879703,3756.8,3756.3,1.729991]
[1641229707511,1.49879703,3756.8,3756.4,1.20416445]
[1641229708515,0.70251196,3756.9,3756.6,2.00479]
[1641229708714,0.128157,3757.1,3756.7,0.229991]
[1641229709517,1.49879703,3757.3,3756.7,0.229991]
[1641229709718,0.26948958,3757.0,3756.8,1.47553653]
[1641229709915,0.26948958,3757.0,3756.9,1.28136792]
[1641229710720,0.26948958,3757.1,3756.9,1.28136792]
[1641229711317,0.39764658,3757.1,3756.9,1.05137692]
[1641229711518,0.128157,3757.1,3757.0,1.11402967]
[1641229711718,0.128157,3757.1,3757.0,0.88403867]
[1641229711919,1.49879703,3757.8,3757.0,2.38403867]
[1641229712118,1.77953477,3758.0,3757.6,1.5]
[1641229712621,1.49884944,3757.7,3757.6,3.50479]
[1641229712818,1.49884944,3757.7,3757.6,3.734781]
[1641229713019,1.49884944,3757.7,3757.6,4.74699975]
[1641229713522,1.49884944,3757.7,3757.6,3.24699975]
[1641229714021,1.49884944,3757.7,3757.6,3.37515675]
[1641229714221,1.77953477,3758.0,3757.6,3.37515675]
[1641229714422,1.77953477,3758.0,3757.6,5.37994675]
[1641229715022,0.2464888,3758.2,3757.6,5.37994675]
[1641229715421,0.2464888,3758.2,3757.7,1.5]
[1641229716121,0.2464888,3758.2,3757.6,5.14995575]
[1641229716522,0.2464888,3758.2,3758.0,2.00479]
[1641229716922,0.2464888,3758.2,3758.1,0.229991]
[1641229718023,0.2464888,3758.2,3758.0,2.00479]
[1641229718223,0.9222888,3758.2,3758.0,2.00479]
[1641229718425,0.9222888,3758.2,3758.0,2.234781]
[1641229718623,0.9222888,3758.2,3758.0,2.00479]
[1641229719424,0.9222888,3758.2,3758.0,2.234781]
[1641229719624,0.9222888,3758.2,3758.0,2.00479]
[1641229720026,0.2464888,3758.1,3758.0,2.00479]
[1641229720429,6.07677666,3758.1,3757.6,1.01221875]
[1641229720726,6.07677666,3758.1,3756.9,2.91872739]
[1641229720727,1.36870664,3757.6,3757.0,5.429]
[1641229720931,3.0,3757.5,3756.8,0.75040903]
[1641229721129,1.3650858,3757.1,3756.8,0.75040903]
[1641229721330,1.33057461,3756.9,3756.8,0.75040903]
[1641229721729,2.0163858,3757.1,3756.8,0.75040903]
[1641229721929,1.33057815,3756.9,3756.8,0.75040903]
[1641229722330,1.33057815,3756.9,3756.8,1.47813233]
[1641229722530,3.33536815,3756.9,3756.8,1.47813233]
[1641229722732,2.00479,3756.9,3756.8,1.47813233]
[1641229723134,3.33535399,3756.9,3756.8,1.47813233]
[1641229723538,3.58184279,3756.9,3756.6,1.47813233]
[1641229724333,3.33535399,3756.9,3756.6,1.47813233]
[1641229724535,3.33535399,3756.9,3756.7,1.47813233]
[1641229725735,3.33535399,3756.9,3756.5,1.16367236]
[1641229725736,0.24920562,3756.8,3756.5,2.64180469]